[Event "Titled Tuesday Blitz January 31 Late 2023"]
[White "Sohier, Julien"]
[Black "Diaz Perez, Michel Alejandro"]
[WhiteFideId "645346"]
[BlackFideId "3517179"]
[WhiteElo "2214"]
[BlackElo "2414"]
[Result "0-1"]
[Round "05"]
[TimeControl "180+2"]
[Date "2023.01.31"]
[WhiteClock "0:00:01"]
[BlackClock "0:00:21"]

1. e4 {[%clk 0:03:00]}  d6 {[%clk 0:02:59]} 2. d4 {[%clk 0:03:00]}  Nf6 {[%clk 0:03:00]} 3. Nc3 {[%clk 0:02:59]}  e5 {[%clk 0:03:00]} 4. Nf3 {[%clk 0:02:57]}  Nbd7 {[%clk 0:02:59]} 5. Bc4 {[%clk 0:02:27]}  Be7 {[%clk 0:02:57]} 6. O-O {[%clk 0:02:24]}  O-O {[%clk 0:02:55]} 7. Re1 {[%clk 0:02:24]}  c6 {[%clk 0:02:53]} 8. a4 {[%clk 0:02:23]}  a5 {[%clk 0:02:48]} 9. h3 {[%clk 0:02:22]}  h6 {[%clk 0:02:47]} 10. Ba2 {[%clk 0:02:18]}  Re8 {[%clk 0:02:44]} 11. Nh4 {[%clk 0:02:08]}  exd4 {[%clk 0:02:44]} 12. Qxd4 {[%clk 0:02:08]}  Nc5 {[%clk 0:02:35]} 13. Ng6 {[%clk 0:02:01]}  Be6 {[%clk 0:02:31]} 14. Nxe7+ {[%clk 0:01:58]}  Qxe7 {[%clk 0:02:32]} 15. Bf4 {[%clk 0:01:35]}  Rad8 {[%clk 0:02:30]} 16. Bg3 {[%clk 0:00:59]}  Bxa2 {[%clk 0:02:27]} 17. Rxa2 {[%clk 0:00:57]}  d5 {[%clk 0:02:14]} 18. e5 {[%clk 0:00:53]}  Nfe4 {[%clk 0:02:13]} 19. Nxe4 {[%clk 0:00:52]}  Nxe4 {[%clk 0:02:13]} 20. Raa1 {[%clk 0:00:46]}  Nxg3 {[%clk 0:02:05]} 21. fxg3 {[%clk 0:00:47]}  Qg5 {[%clk 0:02:05]} 22. Kh2 {[%clk 0:00:47]}  Re6 {[%clk 0:02:04]} 23. Qb6 {[%clk 0:00:33]}  Rde8 {[%clk 0:02:01]} 24. Qxa5 {[%clk 0:00:30]}  Rxe5 {[%clk 0:01:53]} 25. Rxe5 {[%clk 0:00:26]}  Rxe5 {[%clk 0:01:54]} 26. Re1 {[%clk 0:00:25]}  Rxe1 {[%clk 0:01:18]} 27. Qxe1 {[%clk 0:00:25]}  Qf6 {[%clk 0:01:15]} 28. Qb4 {[%clk 0:00:19]}  h5 {[%clk 0:01:05]} 29. a5 {[%clk 0:00:19]}  h4 {[%clk 0:01:00]} 30. gxh4 {[%clk 0:00:17]}  Qe5+ {[%clk 0:01:00]} 31. Kh1 {[%clk 0:00:16]}  Qc7 {[%clk 0:00:57]} 32. Qb6 {[%clk 0:00:15]}  Qe7 {[%clk 0:00:55]} 33. c3 {[%clk 0:00:12]}  g6 {[%clk 0:00:54]} 34. a6 {[%clk 0:00:12]}  bxa6 {[%clk 0:00:53]} 35. Qxc6 {[%clk 0:00:12]}  Qe1+ {[%clk 0:00:53]} 36. Kh2 {[%clk 0:00:12]}  Qe5+ {[%clk 0:00:54]} 37. Kh1 {[%clk 0:00:11]}  d4 {[%clk 0:00:48]} 38. Qc8+ {[%clk 0:00:09]}  Kg7 {[%clk 0:00:43]} 39. cxd4 {[%clk 0:00:09]}  Qxd4 {[%clk 0:00:44]} 40. Qxa6 {[%clk 0:00:08]}  Qxb2 {[%clk 0:00:43]} 41. Qc4 {[%clk 0:00:07]}  Qa1+ {[%clk 0:00:41]} 42. Kh2 {[%clk 0:00:07]}  Qe5+ {[%clk 0:00:42]} 43. Kh1 {[%clk 0:00:07]}  Qe1+ {[%clk 0:00:42]} 44. Kh2 {[%clk 0:00:07]}  Qe5+ {[%clk 0:00:42]} 45. Kh1 {[%clk 0:00:06]}  Qg3 {[%clk 0:00:41]} 46. Qe4 {[%clk 0:00:05]}  Qd6 {[%clk 0:00:40]} 47. Qf3 {[%clk 0:00:03]}  Qe5 {[%clk 0:00:38]} 48. Qf2 {[%clk 0:00:02]}  f5 {[%clk 0:00:38]} 49. Qf3 {[%clk 0:00:02]}  Kf6 {[%clk 0:00:31]} 50. Qf2 {[%clk 0:00:03]}  Qe4 {[%clk 0:00:30]} 51. Kg1 {[%clk 0:00:03]}  f4 {[%clk 0:00:28]} 52. Qf3 {[%clk 0:00:03]}  Qd4+ {[%clk 0:00:28]} 53. Kh2 {[%clk 0:00:03]}  Qd2 {[%clk 0:00:27]} 54. h5 {[%clk 0:00:03]}  gxh5 {[%clk 0:00:23]} 55. Qxh5 {[%clk 0:00:03]}  Qf2 {[%clk 0:00:24]} 56. Qf3 {[%clk 0:00:02]}  Qd2 {[%clk 0:00:23]} 57. h4 {[%clk 0:00:02]}  Kf5 {[%clk 0:00:22]} 58. Kh3 {[%clk 0:00:03]}  Qc1 {[%clk 0:00:21]} 59. Qg4+ {[%clk 0:00:03]}  Ke5 {[%clk 0:00:20]} 60. Qg7+ {[%clk 0:00:03]}  Ke4 {[%clk 0:00:20]} 61. Qe7+ {[%clk 0:00:03]}  Kd3 {[%clk 0:00:21]} 62. Qd6+ {[%clk 0:00:03]}  Ke2 {[%clk 0:00:20]} 63. Qe5+ {[%clk 0:00:03]}  Kf2 {[%clk 0:00:20]} 64. Qd4+ {[%clk 0:00:02]}  Qe3+ {[%clk 0:00:20]} 65. Qxe3+ {[%clk 0:00:01]}  fxe3 {[%clk 0:00:21]} 0-1


[Site "https://www.chess.com"]

[Event "Titled Tuesday Blitz January 31 Late 2023"]
[White "Baskakov, Egor"]
[Black "Defend, Balint"]
[WhiteFideId "24197866"]
[BlackFideId "17004853"]
[WhiteElo "2215"]
[BlackElo "1673"]
[Result "1/2-1/2"]
[Round "05"]
[TimeControl "180+2"]
[Date "2023.01.31"]
[WhiteClock "0:00:07"]
[BlackClock "0:00:10"]

1. e4 {[%clk 0:03:00]}  c5 {[%clk 0:02:56]} 2. Nf3 {[%clk 0:03:00]}  d6 {[%clk 0:02:55]} 3. d4 {[%clk 0:03:00]}  cxd4 {[%clk 0:02:56]} 4. Nxd4 {[%clk 0:03:01]}  Nf6 {[%clk 0:02:56]} 5. Nc3 {[%clk 0:03:01]}  a6 {[%clk 0:02:57]} 6. a4 {[%clk 0:03:02]}  e5 {[%clk 0:02:56]} 7. Nde2 {[%clk 0:03:02]}  h5 {[%clk 0:02:54]} 8. h4 {[%clk 0:02:59]}  Be6 {[%clk 0:02:44]} 9. g3 {[%clk 0:03:00]}  Nbd7 {[%clk 0:02:42]} 10. Bg2 {[%clk 0:03:00]}  Be7 {[%clk 0:02:30]} 11. O-O {[%clk 0:02:50]}  Rc8 {[%clk 0:02:26]} 12. Nd5 {[%clk 0:02:47]}  Nxd5 {[%clk 0:02:13]} 13. exd5 {[%clk 0:02:48]}  Bf5 {[%clk 0:02:13]} 14. c3 {[%clk 0:02:44]}  Bg4 {[%clk 0:02:05]} 15. Qc2 {[%clk 0:02:36]}  Nf6 {[%clk 0:02:02]} 16. a5 {[%clk 0:02:32]}  Qd7 {[%clk 0:02:01]} 17. Be3 {[%clk 0:02:16]}  Bh3 {[%clk 0:01:50]} 18. Qd3 {[%clk 0:02:05]}  Qg4 {[%clk 0:01:25]} 19. b3 {[%clk 0:01:51]}  e4 {[%clk 0:00:41]} 20. Qd1 {[%clk 0:01:44]}  Bxg2 {[%clk 0:00:39]} 21. Kxg2 {[%clk 0:01:45]}  Qf3+ {[%clk 0:00:35]} 22. Kg1 {[%clk 0:01:44]}  Ng4 {[%clk 0:00:35]} 23. Qd2 {[%clk 0:01:30]}  Bf6 {[%clk 0:00:20]} 24. Rac1 {[%clk 0:01:23]}  Be5 {[%clk 0:00:18]} 25. c4 {[%clk 0:01:20]}  Nxe3 {[%clk 0:00:17]} 26. Qxe3 {[%clk 0:01:14]}  Qxe3 {[%clk 0:00:17]} 27. fxe3 {[%clk 0:01:15]}  Ke7 {[%clk 0:00:16]} 28. Kg2 {[%clk 0:01:11]}  Rc7 {[%clk 0:00:16]} 29. Nc3 {[%clk 0:01:07]}  Bxc3 {[%clk 0:00:15]} 30. Rxc3 {[%clk 0:01:08]}  Rhc8 {[%clk 0:00:14]} 31. Ra1 {[%clk 0:01:06]}  f5 {[%clk 0:00:14]} 32. Rc2 {[%clk 0:01:05]}  Rc5 {[%clk 0:00:14]} 33. Rd2 {[%clk 0:00:56]}  g6 {[%clk 0:00:15]} 34. Ra4 {[%clk 0:00:55]}  Kf6 {[%clk 0:00:15]} 35. Kf2 {[%clk 0:00:50]}  g5 {[%clk 0:00:15]} 36. hxg5+ {[%clk 0:00:49]}  Kxg5 {[%clk 0:00:16]} 37. Rd1 {[%clk 0:00:50]}  R5c7 {[%clk 0:00:16]} 38. Rb4 {[%clk 0:00:47]}  Rd8 {[%clk 0:00:12]} 39. Rb6 {[%clk 0:00:45]}  Rdd7 {[%clk 0:00:12]} 40. Rc1 {[%clk 0:00:45]}  Rc5 {[%clk 0:00:12]} 41. b4 {[%clk 0:00:44]}  Rcc7 {[%clk 0:00:12]} 42. b5 {[%clk 0:00:34]}  axb5 {[%clk 0:00:12]} 43. Rxb5 {[%clk 0:00:34]}  h4 {[%clk 0:00:10]} 44. gxh4+ {[%clk 0:00:33]}  Kxh4 {[%clk 0:00:11]} 45. Rg1 {[%clk 0:00:30]}  Rf7 {[%clk 0:00:11]} 46. Rg8 {[%clk 0:00:28]}  Rxc4 {[%clk 0:00:10]} 47. Rb2 {[%clk 0:00:24]}  f4 {[%clk 0:00:10]} 48. Ke1 {[%clk 0:00:20]}  Rc1+ {[%clk 0:00:09]} 49. Kd2 {[%clk 0:00:21]}  Rf1 {[%clk 0:00:09]} 50. Kc3 {[%clk 0:00:20]}  Kh3 {[%clk 0:00:09]} 51. exf4 {[%clk 0:00:17]}  R7xf4 {[%clk 0:00:08]} 52. Kd4 {[%clk 0:00:17]}  R1f3 {[%clk 0:00:08]} 53. Re2 {[%clk 0:00:15]}  Rg3 {[%clk 0:00:08]} 54. Rh8+ {[%clk 0:00:15]}  Kg4 {[%clk 0:00:08]} 55. Rxe4 {[%clk 0:00:10]}  Ra3 {[%clk 0:00:07]} 56. Rg8+ {[%clk 0:00:09]}  Kf3 {[%clk 0:00:07]} 57. Rxf4+ {[%clk 0:00:08]}  Kxf4 {[%clk 0:00:08]} 58. Rf8+ {[%clk 0:00:06]}  Kg5 {[%clk 0:00:08]} 59. Rf7 {[%clk 0:00:06]}  Ra4+ {[%clk 0:00:08]} 60. Ke3 {[%clk 0:00:06]}  Rxa5 {[%clk 0:00:09]} 61. Rxb7 {[%clk 0:00:06]}  Rxd5 {[%clk 0:00:09]} 62. Ke4 {[%clk 0:00:07]}  Rd1 {[%clk 0:00:10]} 63. Rf7 {[%clk 0:00:06]}  Kg6 {[%clk 0:00:10]} 64. Rf8 {[%clk 0:00:06]}  Kg7 {[%clk 0:00:09]} 65. Rf2 {[%clk 0:00:06]}  d5+ {[%clk 0:00:10]} 66. Ke3 {[%clk 0:00:05]}  d4+ {[%clk 0:00:09]} 67. Ke4 {[%clk 0:00:06]}  d3 {[%clk 0:00:09]} 68. Ke3 {[%clk 0:00:06]}  d2 {[%clk 0:00:10]} 69. Rxd2 {[%clk 0:00:06]}  Rxd2 {[%clk 0:00:10]} 70. Kxd2 {[%clk 0:00:07]} 1/2-1/2


[Site "https://www.chess.com"]

[Event "Titled Tuesday Blitz January 31 Late 2023"]
[White "Ibadov, Dashgyn"]
[Black "Kosakowski, Jakub"]
[WhiteFideId "24107514"]
[BlackFideId "1185080"]
[WhiteElo "2391"]
[BlackElo "2485"]
[Result "1-0"]
[Round "05"]
[TimeControl "180+2"]
[Date "2023.01.31"]
[WhiteClock "0:02:36"]
[BlackClock "0:02:09"]

1. e4 {[%clk 0:03:00]}  c6 {[%clk 0:02:48]} 2. d4 {[%clk 0:03:00]}  d5 {[%clk 0:02:48]} 3. Nc3 {[%clk 0:02:59]}  dxe4 {[%clk 0:02:48]} 4. Nxe4 {[%clk 0:03:00]}  Bf5 {[%clk 0:02:48]} 5. Ng3 {[%clk 0:03:00]}  Bg6 {[%clk 0:02:48]} 6. h4 {[%clk 0:03:01]}  h6 {[%clk 0:02:48]} 7. h5 {[%clk 0:03:00]}  Bh7 {[%clk 0:02:48]} 8. Nf3 {[%clk 0:03:00]}  Nd7 {[%clk 0:02:48]} 9. Bd3 {[%clk 0:03:00]}  Bxd3 {[%clk 0:02:46]} 10. Qxd3 {[%clk 0:03:01]}  e6 {[%clk 0:02:46]} 11. Bd2 {[%clk 0:02:59]}  Ngf6 {[%clk 0:02:46]} 12. O-O-O {[%clk 0:03:00]}  Be7 {[%clk 0:02:38]} 13. Ne4 {[%clk 0:02:58]}  O-O {[%clk 0:02:38]} 14. g4 {[%clk 0:02:58]}  c5 {[%clk 0:02:37]} 15. g5 {[%clk 0:02:53]}  Ng4 {[%clk 0:02:15]} 16. gxh6 {[%clk 0:02:48]}  f5 {[%clk 0:02:14]} 17. hxg7 {[%clk 0:02:47]}  Kxg7 {[%clk 0:02:13]} 18. Neg5 {[%clk 0:02:44]}  Qb6 {[%clk 0:02:09]} 19. Qc4 {[%clk 0:02:36]} 1-0


[Site "https://www.chess.com"]

[Event "Titled Tuesday Blitz January 31 Late 2023"]
[White "Boros, Denes"]
[Black "Sohal, Tanraj"]
[WhiteFideId "722340"]
[BlackFideId "2608499"]
[WhiteElo "2406"]
[BlackElo "2234"]
[Result "1-0"]
[Round "05"]
[TimeControl "180+2"]
[Date "2023.01.31"]
[WhiteClock "0:01:58"]
[BlackClock "0:01:44"]

1. d4 {[%clk 0:03:00]}  d5 {[%clk 0:02:53]} 2. Nc3 {[%clk 0:03:00]}  e6 {[%clk 0:02:53]} 3. Nf3 {[%clk 0:02:59]}  Nf6 {[%clk 0:02:52]} 4. Bg5 {[%clk 0:02:59]}  Be7 {[%clk 0:02:52]} 5. Bxf6 {[%clk 0:02:59]}  Bxf6 {[%clk 0:02:52]} 6. e4 {[%clk 0:03:00]}  dxe4 {[%clk 0:02:52]} 7. Nxe4 {[%clk 0:03:00]}  Be7 {[%clk 0:02:52]} 8. Qd3 {[%clk 0:03:01]}  Nd7 {[%clk 0:02:51]} 9. O-O-O {[%clk 0:03:01]}  O-O {[%clk 0:02:51]} 10. h4 {[%clk 0:03:01]}  Nf6 {[%clk 0:02:47]} 11. Nfg5 {[%clk 0:03:00]}  g6 {[%clk 0:02:38]} 12. Kb1 {[%clk 0:02:58]}  Nxe4 {[%clk 0:02:37]} 13. Nxe4 {[%clk 0:02:58]}  b6 {[%clk 0:02:36]} 14. h5 {[%clk 0:02:59]}  Kg7 {[%clk 0:02:31]} 15. Qe3 {[%clk 0:02:51]}  Rh8 {[%clk 0:02:30]} 16. Bc4 {[%clk 0:02:40]}  Bb7 {[%clk 0:02:28]} 17. d5 {[%clk 0:02:33]}  exd5 {[%clk 0:02:27]} 18. h6+ {[%clk 0:02:31]}  Kg8 {[%clk 0:02:27]} 19. Qc3 {[%clk 0:02:21]}  f6 {[%clk 0:02:26]} 20. Rhe1 {[%clk 0:02:16]}  Kf7 {[%clk 0:02:24]} 21. Ng5+ {[%clk 0:02:15]}  Kg8 {[%clk 0:02:17]} 22. Ne6 {[%clk 0:02:11]}  Qd6 {[%clk 0:02:16]} 23. Nxc7 {[%clk 0:02:08]}  Rc8 {[%clk 0:01:53]} 24. Nxd5 {[%clk 0:02:03]}  Bxd5 {[%clk 0:01:44]} 25. Bxd5+ {[%clk 0:01:58]} 1-0


[Site "https://www.chess.com"]

[Event "Titled Tuesday Blitz January 31 Late 2023"]
[White "Mekhitarian, Krikor Sevag"]
[Black "Jimenez Almeida, Luis David"]
[WhiteFideId "2107660"]
[BlackFideId "22242244"]
[WhiteElo "2537"]
[BlackElo "2242"]
[Result "1-0"]
[Round "05"]
[TimeControl "180+2"]
[Date "2023.01.31"]
[WhiteClock "0:01:23"]
[BlackClock "0:00:12"]

1. d4 {[%clk 0:03:00]}  g6 {[%clk 0:02:59]} 2. e4 {[%clk 0:02:59]}  Bg7 {[%clk 0:02:59]} 3. Nc3 {[%clk 0:02:59]}  c6 {[%clk 0:02:58]} 4. f4 {[%clk 0:02:57]}  d5 {[%clk 0:02:57]} 5. e5 {[%clk 0:02:57]}  h5 {[%clk 0:02:57]} 6. Nf3 {[%clk 0:02:49]}  Bg4 {[%clk 0:02:55]} 7. Be3 {[%clk 0:02:49]}  Nh6 {[%clk 0:02:54]} 8. h3 {[%clk 0:02:50]}  Bxf3 {[%clk 0:02:54]} 9. Qxf3 {[%clk 0:02:51]}  h4 {[%clk 0:02:53]} 10. Bf2 {[%clk 0:02:47]}  Nf5 {[%clk 0:02:53]} 11. Bd3 {[%clk 0:02:47]}  e6 {[%clk 0:02:53]} 12. O-O {[%clk 0:02:43]}  Nd7 {[%clk 0:02:51]} 13. Ne2 {[%clk 0:02:42]}  Qe7 {[%clk 0:02:35]} 14. b3 {[%clk 0:02:27]}  a5 {[%clk 0:02:28]} 15. c4 {[%clk 0:02:24]}  dxc4 {[%clk 0:02:07]} 16. bxc4 {[%clk 0:02:21]}  Kf8 {[%clk 0:01:38]} 17. Rab1 {[%clk 0:02:20]}  Nb8 {[%clk 0:01:33]} 18. Rb2 {[%clk 0:02:01]}  Na6 {[%clk 0:01:31]} 19. Rfb1 {[%clk 0:01:56]}  Rb8 {[%clk 0:00:46]} 20. Be4 {[%clk 0:01:51]}  Kg8 {[%clk 0:00:39]} 21. Kh2 {[%clk 0:01:51]}  Kh7 {[%clk 0:00:38]} 22. Qc3 {[%clk 0:01:40]}  a4 {[%clk 0:00:35]} 23. Rb6 {[%clk 0:01:33]}  Bh6 {[%clk 0:00:32]} 24. Qf3 {[%clk 0:01:27]}  Rhc8 {[%clk 0:00:17]} 25. a3 {[%clk 0:01:26]}  Rc7 {[%clk 0:00:17]} 26. Rxa6 {[%clk 0:01:24]}  bxa6 {[%clk 0:00:12]} 27. Rxb8 {[%clk 0:01:23]} 1-0


[Site "https://www.chess.com"]

[Event "Titled Tuesday Blitz January 31 Late 2023"]
[White "Jeet, Jain"]
[Black "Erdogdu, Mert"]
[WhiteFideId "5073022"]
[BlackFideId "6301495"]
[WhiteElo "2199"]
[BlackElo "2413"]
[Result "0-1"]
[Round "05"]
[TimeControl "180+2"]
[Date "2023.01.31"]
[WhiteClock "0:00:16"]
[BlackClock "0:01:11"]

1. Nf3 {[%clk 0:02:53]}  d5 {[%clk 0:02:59]} 2. g3 {[%clk 0:02:50]}  e6 {[%clk 0:02:59]} 3. Bg2 {[%clk 0:02:50]}  c5 {[%clk 0:02:59]} 4. O-O {[%clk 0:02:51]}  Nf6 {[%clk 0:03:00]} 5. d4 {[%clk 0:02:52]}  Be7 {[%clk 0:03:00]} 6. c3 {[%clk 0:02:43]}  O-O {[%clk 0:02:59]} 7. Re1 {[%clk 0:02:43]}  b6 {[%clk 0:02:55]} 8. Bg5 {[%clk 0:02:39]}  Nbd7 {[%clk 0:02:51]} 9. Nbd2 {[%clk 0:02:38]}  Bb7 {[%clk 0:02:52]} 10. Bxf6 {[%clk 0:02:37]}  Nxf6 {[%clk 0:02:51]} 11. Ne5 {[%clk 0:02:36]}  cxd4 {[%clk 0:02:47]} 12. cxd4 {[%clk 0:02:34]}  Rc8 {[%clk 0:02:48]} 13. Qa4 {[%clk 0:02:30]}  a6 {[%clk 0:02:45]} 14. Rac1 {[%clk 0:02:27]}  Qd6 {[%clk 0:02:45]} 15. e3 {[%clk 0:02:23]}  Qb4 {[%clk 0:02:40]} 16. Qxb4 {[%clk 0:01:17]}  Bxb4 {[%clk 0:02:41]} 17. Nef3 {[%clk 0:01:18]}  Ne4 {[%clk 0:02:37]} 18. Rxc8 {[%clk 0:01:04]}  Rxc8 {[%clk 0:02:38]} 19. Rd1 {[%clk 0:01:05]}  Nxd2 {[%clk 0:02:37]} 20. Nxd2 {[%clk 0:01:04]}  Rc2 {[%clk 0:02:25]} 21. Nf3 {[%clk 0:00:53]}  Rxb2 {[%clk 0:02:14]} 22. Rc1 {[%clk 0:00:53]}  Bd6 {[%clk 0:02:11]} 23. a4 {[%clk 0:00:44]}  f6 {[%clk 0:02:04]} 24. Bf1 {[%clk 0:00:27]}  Kf7 {[%clk 0:02:00]} 25. Ne1 {[%clk 0:00:25]}  Rb4 {[%clk 0:01:52]} 26. Ra1 {[%clk 0:00:24]}  Bc6 {[%clk 0:01:46]} 27. Bxa6 {[%clk 0:00:22]}  Rxa4 {[%clk 0:01:42]} 28. Rxa4 {[%clk 0:00:21]}  Bxa4 {[%clk 0:01:42]} 29. Bd3 {[%clk 0:00:20]}  g6 {[%clk 0:01:41]} 30. Kf1 {[%clk 0:00:20]}  b5 {[%clk 0:01:37]} 31. Ke2 {[%clk 0:00:20]}  b4 {[%clk 0:01:37]} 32. Kd2 {[%clk 0:00:20]}  Ke7 {[%clk 0:01:27]} 33. Nc2 {[%clk 0:00:19]}  b3 {[%clk 0:01:25]} 34. Ne1 {[%clk 0:00:17]}  Bb4+ {[%clk 0:01:20]} 35. Kd1 {[%clk 0:00:15]}  b2+ {[%clk 0:01:18]} 36. Ke2 {[%clk 0:00:16]}  Bb5 {[%clk 0:01:11]} 0-1


[Site "https://www.chess.com"]

[Event "Titled Tuesday Blitz January 31 Late 2023"]
[White "Costachi, Mihnea"]
[Black "Carbone, Diego"]
[WhiteFideId "1217518"]
[BlackFideId "3002179"]
[WhiteElo "2476"]
[BlackElo "2336"]
[Result "1-0"]
[Round "05"]
[TimeControl "180+2"]
[Date "2023.01.31"]
[WhiteClock "0:00:10"]
[BlackClock "0:00:05"]

1. Nc3 {[%clk 0:03:00]}  e6 {[%clk 0:02:57]} 2. d4 {[%clk 0:02:58]}  d5 {[%clk 0:02:57]} 3. Bf4 {[%clk 0:02:58]}  Nf6 {[%clk 0:02:54]} 4. e3 {[%clk 0:02:57]}  Bb4 {[%clk 0:02:52]} 5. Bd3 {[%clk 0:02:51]}  Nbd7 {[%clk 0:02:45]} 6. a3 {[%clk 0:02:47]}  Bxc3+ {[%clk 0:02:44]} 7. bxc3 {[%clk 0:02:48]}  c5 {[%clk 0:02:44]} 8. c4 {[%clk 0:02:44]}  cxd4 {[%clk 0:02:37]} 9. exd4 {[%clk 0:02:43]}  O-O {[%clk 0:02:37]} 10. Nf3 {[%clk 0:02:43]}  b6 {[%clk 0:02:36]} 11. O-O {[%clk 0:02:41]}  dxc4 {[%clk 0:02:35]} 12. Bxc4 {[%clk 0:02:41]}  Bb7 {[%clk 0:02:35]} 13. Ne5 {[%clk 0:02:36]}  Rc8 {[%clk 0:02:32]} 14. Bd3 {[%clk 0:02:32]}  Nd5 {[%clk 0:02:28]} 15. Qg4 {[%clk 0:02:15]}  N7f6 {[%clk 0:02:17]} 16. Qh4 {[%clk 0:02:13]}  Nxf4 {[%clk 0:02:16]} 17. Qxf4 {[%clk 0:02:14]}  Qd5 {[%clk 0:02:14]} 18. Nf3 {[%clk 0:02:10]}  Rfd8 {[%clk 0:02:10]} 19. Rfd1 {[%clk 0:02:04]}  Qh5 {[%clk 0:02:05]} 20. Ne5 {[%clk 0:01:59]}  h6 {[%clk 0:01:50]} 21. c4 {[%clk 0:01:54]}  Qg5 {[%clk 0:01:47]} 22. Qxg5 {[%clk 0:01:54]}  hxg5 {[%clk 0:01:48]} 23. Be2 {[%clk 0:01:46]}  Nd7 {[%clk 0:01:48]} 24. Nf3 {[%clk 0:01:43]}  g4 {[%clk 0:01:37]} 25. Nd2 {[%clk 0:01:38]}  Nf6 {[%clk 0:01:36]} 26. Nb3 {[%clk 0:01:35]}  Ba6 {[%clk 0:01:24]} 27. Rac1 {[%clk 0:01:33]}  g6 {[%clk 0:01:23]} 28. Kf1 {[%clk 0:01:31]}  Kg7 {[%clk 0:01:23]} 29. c5 {[%clk 0:01:31]}  Bxe2+ {[%clk 0:01:22]} 30. Kxe2 {[%clk 0:01:32]}  bxc5 {[%clk 0:01:17]} 31. Nxc5 {[%clk 0:01:31]}  Nd5 {[%clk 0:01:14]} 32. g3 {[%clk 0:01:30]}  Rb8 {[%clk 0:01:09]} 33. Rd2 {[%clk 0:01:30]}  Rb5 {[%clk 0:01:02]} 34. Kf1 {[%clk 0:01:16]}  Rh8 {[%clk 0:00:58]} 35. Kg2 {[%clk 0:01:16]}  Rhb8 {[%clk 0:00:57]} 36. h3 {[%clk 0:01:13]}  gxh3+ {[%clk 0:00:53]} 37. Kxh3 {[%clk 0:01:14]}  Rb2 {[%clk 0:00:54]} 38. Rcc2 {[%clk 0:01:14]}  Rxc2 {[%clk 0:00:53]} 39. Rxc2 {[%clk 0:01:15]}  Rb1 {[%clk 0:00:53]} 40. Kg2 {[%clk 0:01:14]}  Rd1 {[%clk 0:00:52]} 41. Rc4 {[%clk 0:01:15]}  Rd2 {[%clk 0:00:50]} 42. Ra4 {[%clk 0:01:14]}  Ne3+ {[%clk 0:00:48]} 43. Kf3 {[%clk 0:01:01]}  Nd1 {[%clk 0:00:42]} 44. Ne4 {[%clk 0:00:52]}  Ra2 {[%clk 0:00:19]} 45. Rxa7 {[%clk 0:00:49]}  Nb2 {[%clk 0:00:18]} 46. Nd6 {[%clk 0:00:39]}  g5 {[%clk 0:00:18]} 47. Nxf7 {[%clk 0:00:33]}  Kg6 {[%clk 0:00:18]} 48. Ne5+ {[%clk 0:00:33]}  Kh6 {[%clk 0:00:15]} 49. Ra6 {[%clk 0:00:21]}  Nd1 {[%clk 0:00:14]} 50. Rxe6+ {[%clk 0:00:20]}  Kg7 {[%clk 0:00:14]} 51. Kg4 {[%clk 0:00:12]}  Nxf2+ {[%clk 0:00:11]} 52. Kf5 {[%clk 0:00:12]}  Rxa3 {[%clk 0:00:09]} 53. Re7+ {[%clk 0:00:12]}  Kg8 {[%clk 0:00:09]} 54. g4 {[%clk 0:00:11]}  Rd3 {[%clk 0:00:06]} 55. Nxd3 {[%clk 0:00:10]}  Nxd3 {[%clk 0:00:05]} 56. Kxg5 {[%clk 0:00:10]} 1-0


[Site "https://www.chess.com"]

[Event "Titled Tuesday Blitz January 31 Late 2023"]
[White "Senthilkumar, Pranav"]
[Black "Alex_Sahakyan2006"]
[WhiteFideId "2083477"]
[WhiteElo "1854"]
[BlackElo "2668"]
[Result "1/2-1/2"]
[Round "05"]
[TimeControl "180+2"]
[Date "2023.01.31"]
[WhiteClock "0:00:06"]
[BlackClock "0:00:04"]

1. d4 {[%clk 0:03:00]}  Nf6 {[%clk 0:02:58]} 2. c4 {[%clk 0:02:59]}  c5 {[%clk 0:02:57]} 3. d5 {[%clk 0:02:58]}  b5 {[%clk 0:02:56]} 4. cxb5 {[%clk 0:02:53]}  a6 {[%clk 0:02:56]} 5. e3 {[%clk 0:02:52]}  g6 {[%clk 0:02:52]} 6. Nf3 {[%clk 0:02:52]}  Bg7 {[%clk 0:02:51]} 7. Nc3 {[%clk 0:02:52]}  O-O {[%clk 0:02:49]} 8. e4 {[%clk 0:02:50]}  d6 {[%clk 0:02:38]} 9. Be2 {[%clk 0:02:46]}  axb5 {[%clk 0:02:37]} 10. Bxb5 {[%clk 0:02:47]}  Nxe4 {[%clk 0:02:36]} 11. O-O {[%clk 0:02:40]}  Bxc3 {[%clk 0:02:32]} 12. bxc3 {[%clk 0:02:41]}  Nxc3 {[%clk 0:02:33]} 13. Qd3 {[%clk 0:02:39]}  Nxb5 {[%clk 0:02:33]} 14. Qxb5 {[%clk 0:02:38]}  Ba6 {[%clk 0:02:32]} 15. Qb2 {[%clk 0:02:38]}  Bxf1 {[%clk 0:02:29]} 16. Bh6 {[%clk 0:02:38]}  f6 {[%clk 0:02:29]} 17. Bxf8 {[%clk 0:02:06]}  Bc4 {[%clk 0:02:27]} 18. Qb7 {[%clk 0:01:57]}  Qxf8 {[%clk 0:01:47]} 19. Qxa8 {[%clk 0:01:54]}  Na6 {[%clk 0:01:47]} 20. Qb7 {[%clk 0:01:47]}  Nb4 {[%clk 0:01:44]} 21. a4 {[%clk 0:01:39]}  Bxd5 {[%clk 0:01:41]} 22. Qb6 {[%clk 0:01:40]}  Qa8 {[%clk 0:01:20]} 23. Ne1 {[%clk 0:01:38]}  Bc4 {[%clk 0:01:10]} 24. a5 {[%clk 0:01:28]}  Kf7 {[%clk 0:01:04]} 25. Nf3 {[%clk 0:01:22]}  Ba6 {[%clk 0:00:47]} 26. Re1 {[%clk 0:01:18]}  Bb7 {[%clk 0:00:43]} 27. Qc7 {[%clk 0:01:10]}  Nd5 {[%clk 0:00:32]} 28. Qd7 {[%clk 0:01:05]}  Bc8 {[%clk 0:00:30]} 29. Qd8 {[%clk 0:01:02]}  Kg7 {[%clk 0:00:14]} 30. h4 {[%clk 0:00:46]}  Qb7 {[%clk 0:00:13]} 31. h5 {[%clk 0:00:44]}  Bg4 {[%clk 0:00:12]} 32. h6+ {[%clk 0:00:41]}  Kxh6 {[%clk 0:00:12]} 33. Qf8+ {[%clk 0:00:41]}  Kh5 {[%clk 0:00:12]} 34. Qg7 {[%clk 0:00:35]}  h6 {[%clk 0:00:09]} 35. Nh2 {[%clk 0:00:29]}  Nf4 {[%clk 0:00:08]} 36. f3 {[%clk 0:00:28]}  Qb2 {[%clk 0:00:07]} 37. fxg4+ {[%clk 0:00:28]}  Kg5 {[%clk 0:00:07]} 38. Nf3+ {[%clk 0:00:17]}  Kxg4 {[%clk 0:00:07]} 39. Nh4 {[%clk 0:00:09]}  Kxh4 {[%clk 0:00:05]} 40. Qxh6+ {[%clk 0:00:09]}  Kg4 {[%clk 0:00:05]} 41. Qh2 {[%clk 0:00:08]}  Qd4+ {[%clk 0:00:04]} 42. Kh1 {[%clk 0:00:08]}  Nd3 {[%clk 0:00:04]} 43. Qh3+ {[%clk 0:00:07]}  Kg5 {[%clk 0:00:05]} 44. Qg3+ {[%clk 0:00:07]}  Kh6 {[%clk 0:00:04]} 45. Rxe7 {[%clk 0:00:06]}  Nf2+ {[%clk 0:00:03]} 46. Kh2 {[%clk 0:00:06]}  Ng4+ {[%clk 0:00:03]} 47. Kh3 {[%clk 0:00:05]}  Nf2+ {[%clk 0:00:03]} 48. Kh2 {[%clk 0:00:05]}  Ng4+ {[%clk 0:00:04]} 49. Kh3 {[%clk 0:00:06]}  Nf2+ {[%clk 0:00:04]} 50. Kh2 {[%clk 0:00:06]} 1/2-1/2


[Site "https://www.chess.com"]